Workbook

Sheet паспорт
A1: ПАТ "УКРТРАНСГАЗ" | G1: ПАСПОРТ ФІЗИКО-ХІМІЧНИХ ПОКАЗНИКІВ ПРИРОДНОГО ГАЗУ № 54
A2: Філія "УМГ "Київтрансгаз" | G2: переданого Лубенським ЛВУМГ та прийнятого ПАТ "Лубнигаз", ПАТ "Полтавагаз", ПАТ "Кременчукгаз"
A3: Лубенський п/м Лубенське ЛВУМГ | G3: Маршрут № 54
A4: Вимірювальна хіміко-аналітична лабораторія
A5: Свідоцтво № 199-15 чинно до 31.12.2018 р. | G5: по газопроводу " Шебелинка-Полтава-Київ , Єлецьк-Диканька-Київ " | V5: за період з | X5: 2017-05-01 | Z5: по | AA5: 2017-05-31
A7: Число місяця | B7: Компонентний склад, % мол. | N7: Фізико-хімічні показники газу обчислені на основі компонентного складу, 101,325 кПа | X7: Температура точки роси за вологою (Р = 3.92 МПа), ºС | Y7: Температура точки роси за вуглеводнями, ºС | Z7: Вміст сірководню, г/м3 | AA7: Вміст меркаптанової сірки, г/м3 | AB7: Вміст механічних домішок, г/м3
N8: Густина абсолютна, кг/м3,при 20 ºС, | O8: Температура вимірювання/згоряння при 20/25°С
B9: метан, С1 | C9: етан, С2 | D9: пропан, С3 | E9: ізо-бутан, і-С4 | F9: н-бутан, н-С4 | G9: нео-пентан, нео-С5 | H9: ізо-пентан, і-С5 | I9: н-пентан, н-С5 | J9: гексани та вищі, С6+ | K9: кисень, О2 | L9: азот, N2 | M9: діоксид вуглецю, CО2 | O9: Теплота згоряння нижча | R9: Теплота згоряння вища | U9: Число Воббе вище
O10: ккал/м3 | P10: МДж/м3 | Q10: кВт⋅год/м3 | R10: ккал/м3 | S10: МДж/м3 | T10: кВт⋅год/м3 | U10: ккал/м3 | V10: МДж/м3 | W10: кВт⋅год/м3
A11: 1 | O11: 8191 | P11: 34.29 | Q11: 9.53 | R11: 9072 | S11: 37.98 | T11: 10.55 | U11: 11408 | V11: 47.76 | W11: 13.27 | AC11: =SUM(B11:M11)+$K$42+$N$42 -> 0
A12: 2 | B12: =[1]Лист1!$D$19 -> 88.5677 | C12: =[1]Лист1!$D$20 -> 5.456 | D12: =[1]Лист1!$D$21 -> 1.09 | E12: =[1]Лист1!$D$22 -> 0.106 | F12: =[1]Лист1!$D$23 -> 0.174 | G12: =[1]Лист1!$D$24 -> 0.0033 | H12: =[1]Лист1!$D$25 -> 0.048 | I12: =[1]Лист1!$D$26 -> 0.039 | J12: =[1]Лист1!$D$27 -> 0.072 | K12: =[1]Лист1!$D$28 -> 0.007 | L12: =[1]Лист1!$D$29 -> 1.484 | M12: =[1]Лист1!$D$30 -> 2.953 | N12: =[1]Лист1!$F$36 -> 0.7641 | O12: =[2]Лист1!$F$307 -> 8204 | P12: =[2]Лист1!$F$306 -> 34.35 | Q12: =[2]Лист1!$F$312 -> 9.541666667 | R12: =[2]Лист1!$F$309 -> 9086 | S12: =[2]Лист1!$F$308 -> 38.04 | T12: =[2]Лист1!$F$313 -> 10.56666667 | U12: =[2]Лист1!$F$311 -> 11407 | V12: =[2]Лист1!$F$310 -> 47.76 | W12: =V12/3.6 -> 13.26666667 | X12: -12.4 | Y12: -9.8 | AC12: 100
A13: 3 | O13: =[2]Лист1!$F$307 -> 8204 | P13: =[2]Лист1!$F$306 -> 34.35 | Q13: =[2]Лист1!$F$312 -> 9.541666667 | R13: =[2]Лист1!$F$309 -> 9086 | S13: =[2]Лист1!$F$308 -> 38.04 | T13: =[2]Лист1!$F$313 -> 10.56666667 | U13: =[2]Лист1!$F$311 -> 11407 | V13: =[2]Лист1!$F$310 -> 47.76 | W13: =V13/3.6 -> 13.26666667 | AC13: 0 | AD13: =IF(AC13=100,"ОК"," ") -> 
A14: 4 | O14: =[2]Лист1!$F$307 -> 8204 | P14: =[2]Лист1!$F$306 -> 34.35 | Q14: =[2]Лист1!$F$312 -> 9.541666667 | R14: =[2]Лист1!$F$309 -> 9086 | S14: =[2]Лист1!$F$308 -> 38.04 | T14: =[2]Лист1!$F$313 -> 10.56666667 | U14: =[2]Лист1!$F$311 -> 11407 | V14: =[2]Лист1!$F$310 -> 47.76 | W14: 13.26666667 | AC14: 0 | AD14: =IF(AC14=100,"ОК"," ") -> 
A15: 5 | O15: =[2]Лист1!$F$307 -> 8204 | P15: =[2]Лист1!$F$306 -> 34.35 | Q15: =[2]Лист1!$F$312 -> 9.541666667 | R15: =[2]Лист1!$F$309 -> 9086 | S15: =[2]Лист1!$F$308 -> 38.04 | T15: =[2]Лист1!$F$313 -> 10.56666667 | U15: =[2]Лист1!$F$311 -> 11407 | V15: =[2]Лист1!$F$310 -> 47.76 | W15: 13.26666667 | AC15: 0
A16: 6 | O16: =[2]Лист1!$F$307 -> 8204 | P16: =[2]Лист1!$F$306 -> 34.35 | Q16: =[2]Лист1!$F$312 -> 9.541666667 | R16: =[2]Лист1!$F$309 -> 9086 | S16: =[2]Лист1!$F$308 -> 38.04 | T16: =[2]Лист1!$F$313 -> 10.56666667 | U16: =[2]Лист1!$F$311 -> 11407 | V16: =[2]Лист1!$F$310 -> 47.76 | W16: 13.26666667 | AC16: 0
A17: 7 | O17: =[2]Лист1!$F$307 -> 8204 | P17: =[2]Лист1!$F$306 -> 34.35 | Q17: =[2]Лист1!$F$312 -> 9.541666667 | R17: =[2]Лист1!$F$309 -> 9086 | S17: =[2]Лист1!$F$308 -> 38.04 | T17: =[2]Лист1!$F$313 -> 10.56666667 | U17: =[2]Лист1!$F$311 -> 11407 | V17: =[2]Лист1!$F$310 -> 47.76 | W17: 13.26666667 | AC17: 0
A18: 8 | O18: =[2]Лист1!$F$307 -> 8204 | P18: =[2]Лист1!$F$306 -> 34.35 | Q18: =[2]Лист1!$F$312 -> 9.541666667 | R18: =[2]Лист1!$F$309 -> 9086 | S18: =[2]Лист1!$F$308 -> 38.04 | T18: =[2]Лист1!$F$313 -> 10.56666667 | U18: =[2]Лист1!$F$311 -> 11407 | V18: =[2]Лист1!$F$310 -> 47.76 | W18: 13.26666667 | AC18: 0
A19: 9 | B19: =[3]Лист1!$D$19 -> 88.1325 | C19: =[3]Лист1!$D$20 -> 5.718 | D19: =[3]Лист1!$D$21 -> 1.202 | E19: =[3]Лист1!$D$22 -> 0.112 | F19: =[3]Лист1!$D$23 -> 0.194 | G19: =[3]Лист1!$D$24 -> 0.0035 | H19: =[3]Лист1!$D$25 -> 0.056 | I19: =[3]Лист1!$D$26 -> 0.046 | J19: =[3]Лист1!$D$27 -> 0.086 | K19: =[3]Лист1!$D$28 -> 0.006 | L19: =[3]Лист1!$D$29 -> 1.534 | M19: =[3]Лист1!$D$30 -> 2.91 | N19: =[3]Лист1!$F$36 -> 0.7679 | O19: =[4]Лист1!$F$307 -> 8247 | P19: =[4]Лист1!$F$306 -> 34.53 | Q19: =[4]Лист1!$F$312 -> 9.591666667 | R19: =[4]Лист1!$F$309 -> 9131 | S19: =[4]Лист1!$F$308 -> 38.23 | T19: =[4]Лист1!$F$313 -> 10.61944444 | U19: =[4]Лист1!$F$311 -> 11436 | V19: =[4]Лист1!$F$310 -> 47.88 | W19: =V19/3.6 -> 13.3 | X19: -9 | Y19: -10.7 | AC19: 100 | AD19: ОК
A20: 10 | O20: =[4]Лист1!$F$307 -> 8247 | P20: =[4]Лист1!$F$306 -> 34.53 | Q20: =[4]Лист1!$F$312 -> 9.591666667 | R20: =[4]Лист1!$F$309 -> 9131 | S20: =[4]Лист1!$F$308 -> 38.23 | T20: =[4]Лист1!$F$313 -> 10.61944444 | U20: =[4]Лист1!$F$311 -> 11436 | V20: =[4]Лист1!$F$310 -> 47.88 | W20: =V20/3.6 -> 13.3 | Z20: 0.0009 | AA20: < 0,0002 | AB20: відс. | AC20: 0
A21: 11 | O21: =[4]Лист1!$F$307 -> 8247 | P21: =[4]Лист1!$F$306 -> 34.53 | Q21: =[4]Лист1!$F$312 -> 9.591666667 | R21: =[4]Лист1!$F$309 -> 9131 | S21: =[4]Лист1!$F$308 -> 38.23 | T21: =[4]Лист1!$F$313 -> 10.61944444 | U21: =[4]Лист1!$F$311 -> 11436 | V21: =[4]Лист1!$F$310 -> 47.88 | W21: 13.3 | AC21: 0
A22: 12 | O22: =[4]Лист1!$F$307 -> 8247 | P22: =[4]Лист1!$F$306 -> 34.53 | Q22: =[4]Лист1!$F$312 -> 9.591666667 | R22: =[4]Лист1!$F$309 -> 9131 | S22: =[4]Лист1!$F$308 -> 38.23 | T22: =[4]Лист1!$F$313 -> 10.61944444 | U22: =[4]Лист1!$F$311 -> 11436 | V22: =[4]Лист1!$F$310 -> 47.88 | W22: 13.3 | AC22: 0
A23: 13 | O23: =[4]Лист1!$F$307 -> 8247 | P23: =[4]Лист1!$F$306 -> 34.53 | Q23: =[4]Лист1!$F$312 -> 9.591666667 | R23: =[4]Лист1!$F$309 -> 9131 | S23: =[4]Лист1!$F$308 -> 38.23 | T23: =[4]Лист1!$F$313 -> 10.61944444 | U23: =[4]Лист1!$F$311 -> 11436 | V23: =[4]Лист1!$F$310 -> 47.88 | W23: 13.3 | AC23: 0
A24: 14 | O24: =[4]Лист1!$F$307 -> 8247 | P24: =[4]Лист1!$F$306 -> 34.53 | Q24: =[4]Лист1!$F$312 -> 9.591666667 | R24: =[4]Лист1!$F$309 -> 9131 | S24: =[4]Лист1!$F$308 -> 38.23 | T24: =[4]Лист1!$F$313 -> 10.61944444 | U24: =[4]Лист1!$F$311 -> 11436 | V24: =[4]Лист1!$F$310 -> 47.88 | W24: 13.3 | AC24: 0
A25: 15 | B25: =[5]Лист1!$D$19 -> 88.7067 | C25: =[5]Лист1!$D$20 -> 5.458 | D25: =[5]Лист1!$D$21 -> 0.994 | E25: =[5]Лист1!$D$22 -> 0.098 | F25: =[5]Лист1!$D$23 -> 0.159 | G25: =[5]Лист1!$D$24 -> 0.0033 | H25: =[5]Лист1!$D$25 -> 0.044 | I25: =[5]Лист1!$D$26 -> 0.038 | J25: =[5]Лист1!$D$27 -> 0.062 | K25: =[5]Лист1!$D$28 -> 0.007 | L25: =[5]Лист1!$D$29 -> 1.48 | M25: =[5]Лист1!$D$30 -> 2.95 | N25: =[5]Лист1!$F$36 -> 0.7621 | O25: =[6]Лист1!$F$307 -> 8183 | P25: =[6]Лист1!$F$306 -> 34.26 | Q25: =[6]Лист1!$F$312 -> 9.516666667 | R25: =[6]Лист1!$F$309 -> 9064 | S25: =[6]Лист1!$F$308 -> 37.95 | T25: =[6]Лист1!$F$313 -> 10.54166667 | U25: =[6]Лист1!$F$311 -> 11395 | V25: =[6]Лист1!$F$310 -> 47.71 | W25: =V25/3.6 -> 13.25277778 | X25: -9.5 | Y25: -11.9 | AC25: 100 | AD25: ОК
A26: 16 | O26: =[6]Лист1!$F$307 -> 8183 | P26: =[6]Лист1!$F$306 -> 34.26 | Q26: =[6]Лист1!$F$312 -> 9.516666667 | R26: =[6]Лист1!$F$309 -> 9064 | S26: =[6]Лист1!$F$308 -> 37.95 | T26: =[6]Лист1!$F$313 -> 10.54166667 | U26: =[6]Лист1!$F$311 -> 11395 | V26: =[6]Лист1!$F$310 -> 47.71 | W26: =V26/3.6 -> 13.25277778 | AC26: 0
A27: 17 | O27: =[6]Лист1!$F$307 -> 8183 | P27: =[6]Лист1!$F$306 -> 34.26 | Q27: =[6]Лист1!$F$312 -> 9.516666667 | R27: =[6]Лист1!$F$309 -> 9064 | S27: =[6]Лист1!$F$308 -> 37.95 | T27: =[6]Лист1!$F$313 -> 10.54166667 | U27: =[6]Лист1!$F$311 -> 11395 | V27: =[6]Лист1!$F$310 -> 47.71 | W27: 13.25277778 | AC27: 0
A28: 18 | O28: =[6]Лист1!$F$307 -> 8183 | P28: =[6]Лист1!$F$306 -> 34.26 | Q28: =[6]Лист1!$F$312 -> 9.516666667 | R28: =[6]Лист1!$F$309 -> 9064 | S28: =[6]Лист1!$F$308 -> 37.95 | T28: =[6]Лист1!$F$313 -> 10.54166667 | U28: =[6]Лист1!$F$311 -> 11395 | V28: =[6]Лист1!$F$310 -> 47.71 | W28: 13.25277778 | AC28: 0
A29: 19 | O29: =[6]Лист1!$F$307 -> 8183 | P29: =[6]Лист1!$F$306 -> 34.26 | Q29: =[6]Лист1!$F$312 -> 9.516666667 | R29: =[6]Лист1!$F$309 -> 9064 | S29: =[6]Лист1!$F$308 -> 37.95 | T29: =[6]Лист1!$F$313 -> 10.54166667 | U29: =[6]Лист1!$F$311 -> 11395 | V29: =[6]Лист1!$F$310 -> 47.71 | W29: 13.25277778 | AC29: 0
A30: 20 | O30: =[6]Лист1!$F$307 -> 8183 | P30: =[6]Лист1!$F$306 -> 34.26 | Q30: =[6]Лист1!$F$312 -> 9.516666667 | R30: =[6]Лист1!$F$309 -> 9064 | S30: =[6]Лист1!$F$308 -> 37.95 | T30: =[6]Лист1!$F$313 -> 10.54166667 | U30: =[6]Лист1!$F$311 -> 11395 | V30: =[6]Лист1!$F$310 -> 47.71 | W30: 13.25277778 | AC30: 0 | AD30: =IF(AC30=100,"ОК"," ") -> 
A31: 21 | O31: =[6]Лист1!$F$307 -> 8183 | P31: =[6]Лист1!$F$306 -> 34.26 | Q31: =[6]Лист1!$F$312 -> 9.516666667 | R31: =[6]Лист1!$F$309 -> 9064 | S31: =[6]Лист1!$F$308 -> 37.95 | T31: =[6]Лист1!$F$313 -> 10.54166667 | U31: =[6]Лист1!$F$311 -> 11395 | V31: =[6]Лист1!$F$310 -> 47.71 | W31: 13.25277778 | AC31: 0
A32: 22 | B32: =[7]Лист1!$D$19 -> 88.3829 | C32: =[7]Лист1!$D$20 -> 5.615 | D32: =[7]Лист1!$D$21 -> 1.035 | E32: =[7]Лист1!$D$22 -> 0.101 | F32: =[7]Лист1!$D$23 -> 0.166 | G32: =[7]Лист1!$D$24 -> 0.0031 | H32: =[7]Лист1!$D$25 -> 0.045 | I32: =[7]Лист1!$D$26 -> 0.036 | J32: =[7]Лист1!$D$27 -> 0.059 | K32: =[7]Лист1!$D$28 -> 0.005 | L32: =[7]Лист1!$D$29 -> 1.492 | M32: =[7]Лист1!$D$30 -> 3.06 | N32: =[7]Лист1!$F$36 -> 0.7649 | O32: =[8]Лист1!$F$307 -> 8190 | P32: =[8]Лист1!$F$306 -> 34.29 | Q32: =[8]Лист1!$F$312 -> 9.525 | R32: =[8]Лист1!$F$309 -> 9069 | S32: =[8]Лист1!$F$308 -> 37.97 | T32: =[8]Лист1!$F$313 -> 10.54722222 | U32: =[8]Лист1!$F$311 -> 11381 | V32: =[8]Лист1!$F$310 -> 47.65 | W32: =V32/3.6 -> 13.23611111 | X32: -12.6 | Y32: -9.5 | AC32: 100 | AD32: ОК
A33: 23 | O33: =[8]Лист1!$F$307 -> 8190 | P33: =[8]Лист1!$F$306 -> 34.29 | Q33: =[8]Лист1!$F$312 -> 9.525 | R33: =[8]Лист1!$F$309 -> 9069 | S33: =[8]Лист1!$F$308 -> 37.97 | T33: =[8]Лист1!$F$313 -> 10.54722222 | U33: =[8]Лист1!$F$311 -> 11381 | V33: =[8]Лист1!$F$310 -> 47.65 | W33: =V33/3.6 -> 13.23611111 | AC33: 0 | AD33: =IF(AC33=100,"ОК"," ") -> 
A34: 24 | O34: =[8]Лист1!$F$307 -> 8190 | P34: =[8]Лист1!$F$306 -> 34.29 | Q34: =[8]Лист1!$F$312 -> 9.525 | R34: =[8]Лист1!$F$309 -> 9069 | S34: =[8]Лист1!$F$308 -> 37.97 | T34: =[8]Лист1!$F$313 -> 10.54722222 | U34: =[8]Лист1!$F$311 -> 11381 | V34: =[8]Лист1!$F$310 -> 47.65 | W34: 13.23611111 | AC34: 0
A35: 25 | O35: =[8]Лист1!$F$307 -> 8190 | P35: =[8]Лист1!$F$306 -> 34.29 | Q35: =[8]Лист1!$F$312 -> 9.525 | R35: =[8]Лист1!$F$309 -> 9069 | S35: =[8]Лист1!$F$308 -> 37.97 | T35: =[8]Лист1!$F$313 -> 10.54722222 | U35: =[8]Лист1!$F$311 -> 11381 | V35: =[8]Лист1!$F$310 -> 47.65 | W35: 13.23611111 | AC35: 0
A36: 26 | O36: =[8]Лист1!$F$307 -> 8190 | P36: =[8]Лист1!$F$306 -> 34.29 | Q36: =[8]Лист1!$F$312 -> 9.525 | R36: =[8]Лист1!$F$309 -> 9069 | S36: =[8]Лист1!$F$308 -> 37.97 | T36: =[8]Лист1!$F$313 -> 10.54722222 | U36: =[8]Лист1!$F$311 -> 11381 | V36: =[8]Лист1!$F$310 -> 47.65 | W36: 13.23611111 | AC36: 0
A37: 27 | O37: =[8]Лист1!$F$307 -> 8190 | P37: =[8]Лист1!$F$306 -> 34.29 | Q37: =[8]Лист1!$F$312 -> 9.525 | R37: =[8]Лист1!$F$309 -> 9069 | S37: =[8]Лист1!$F$308 -> 37.97 | T37: =[8]Лист1!$F$313 -> 10.54722222 | U37: =[8]Лист1!$F$311 -> 11381 | V37: =[8]Лист1!$F$310 -> 47.65 | W37: 13.23611111 | AC37: 0
A38: 28 | O38: =[8]Лист1!$F$307 -> 8190 | P38: =[8]Лист1!$F$306 -> 34.29 | Q38: =[8]Лист1!$F$312 -> 9.525 | R38: =[8]Лист1!$F$309 -> 9069 | S38: =[8]Лист1!$F$308 -> 37.97 | T38: =[8]Лист1!$F$313 -> 10.54722222 | U38: =[8]Лист1!$F$311 -> 11381 | V38: =[8]Лист1!$F$310 -> 47.65 | W38: 13.23611111 | AC38: 0
A39: 29 | B39: =[9]Лист1!$D$19 -> 87.6354 | C39: =[9]Лист1!$D$20 -> 5.903 | D39: =[9]Лист1!$D$21 -> 1.322 | E39: =[9]Лист1!$D$22 -> 0.116 | F39: =[9]Лист1!$D$23 -> 0.222 | G39: =[9]Лист1!$D$24 -> 0.0036 | H39: =[9]Лист1!$D$25 -> 0.068 | I39: =[9]Лист1!$D$26 -> 0.064 | J39: =[9]Лист1!$D$27 -> 0.126 | K39: =[9]Лист1!$D$28 -> 0.005 | L39: =[9]Лист1!$D$29 -> 1.496 | M39: =[9]Лист1!$D$30 -> 3.039 | N39: =[9]Лист1!$F$36 -> 0.7741 | O39: =[10]Лист1!$F$307 -> 8290 | P39: =[10]Лист1!$F$306 -> 34.71 | Q39: =[10]Лист1!$F$312 -> 9.641666667 | R39: =[10]Лист1!$F$309 -> 9179 | S39: =[10]Лист1!$F$308 -> 38.43 | T39: =[10]Лист1!$F$313 -> 10.675 | U39: =[10]Лист1!$F$311 -> 11448 | V39: =[10]Лист1!$F$310 -> 47.93 | W39: =V39/3.6 -> 13.31388889 | X39: -6.8 | Y39: -5.3 | AC39: 100 | AD39: ОК
A40: 30 | O40: =[10]Лист1!$F$307 -> 8290 | P40: =[10]Лист1!$F$306 -> 34.71 | Q40: =[10]Лист1!$F$312 -> 9.641666667 | R40: =[10]Лист1!$F$309 -> 9179 | S40: =[10]Лист1!$F$308 -> 38.43 | T40: =[10]Лист1!$F$313 -> 10.675 | U40: =[10]Лист1!$F$311 -> 11448 | V40: =[10]Лист1!$F$310 -> 47.93 | W40: =V40/3.6 -> 13.31388889 | AC40: 0
A41: 31 | O41: =[10]Лист1!$F$307 -> 8290 | P41: =[10]Лист1!$F$306 -> 34.71 | Q41: =[10]Лист1!$F$312 -> 9.641666667 | R41: =[10]Лист1!$F$309 -> 9179 | S41: =[10]Лист1!$F$308 -> 38.43 | T41: =[10]Лист1!$F$313 -> 10.675 | U41: =[10]Лист1!$F$311 -> 11448 | V41: =[10]Лист1!$F$310 -> 47.93 | W41: 13.31388889 | AC41: 0
A42: Рівень одоризації відповідає вимогам чинних нормативних документів. | O42: 8213.998446 | P42: 34.39089727 | Q42: 9.553166367 | R42: 9096.268114 | S42: 38.08420766 | T42: 10.57894657
H43: Середньозважене значення теплоти згоряння:
B46: Головний інженер Лубенського ЛВУМГ Сирота В.П. 01.06.2017 року
C47: Підрозділу підприємства, якому підпорядкована лабораторія | O47: прізвище | R47: підпис | V47: дата
B48: Завідувач лабораторією Лубенського ЛВУМГ Алєксєєнко Н.А. 01.06.2017 року
C49: Лабораторія, де здійснювалось вимірювання газу | O49: прізвище | R49: підпис | V49: дата
B50: Начальник служби ГВ та М Шило О.Є. 01.06.2017 року
C51: Підрозділу, відповідального за облік газу за маршрутом | O51: прізвище | R51: підпис | V51: дата

Sheet розрахунок
A2: Додаток до Паспорту фізико-хімічних показників природного газу по маршруту № 54
A4: Число місяця | B4: Теплота згоряння вища, МДж/м3 | C4: Полтавська область | L4: Загальний обсяг газу, м3
C5: Обсяг газу переданого за добу, м3
C6: ГРС Войниха | D6: ГРС Оріхівка | E6: ГРС Хорол | F6: ГРС Стайки | G6: ГРС Новачиха | H6: ГРС Ромодан | I6: ГРС Петракиївка | J6: ГРС Клепачі (Вергуни) | K6: ГРС Семенівка
A7: 1 | B7: 37.98 | C7: 4846.6 | D7: 1273.9 | E7: 18404.6 | F7: 2386.2 | G7: 333 | H7: 1034.7 | I7: 829.9 | J7: 871.8 | K7: 4488.4 | L7: =SUM(C7:K7) -> 34469.1
A8: 2 | B8: =[2]Лист1!$F$308 -> 38.04 | C8: 9979.8 | D8: 1240.3 | E8: 11106.3 | F8: 2311.5 | G8: 316.5 | H8: 1008.7 | I8: 735.6 | J8: 859.3 | K8: 4514 | L8: 32072
A9: 3 | B9: =[2]Лист1!$F$308 -> 38.04 | C9: 9216.7 | D9: 1207 | E9: 16500.5 | F9: 2108.4 | G9: 245.6 | H9: 1013.4 | I9: 671.1 | J9: 775.2 | K9: 4108.4 | L9: 35846.3
A10: 4 | B10: =[2]Лист1!$F$308 -> 38.04 | C10: 7324 | D10: 1384.5 | E10: 11760.1 | F10: 2169.6 | G10: 287.5 | H10: 1060.2 | I10: 707.2 | J10: 813.7 | K10: 4060.9 | L10: 29567.7
A11: 5 | B11: =[2]Лист1!$F$308 -> 38.04 | C11: 5413.1 | D11: 1471.3 | E11: 12164.8 | F11: 2303.7 | G11: 322.6 | H11: 1117.1 | I11: 739.3 | J11: 820.5 | K11: 4095.5 | L11: 28447.9
A12: 6 | B12: =[2]Лист1!$F$308 -> 38.04 | C12: 9643.1 | D12: 1412.5 | E12: 16187.4 | F12: 2290.1 | G12: 333.1 | H12: 1081.6 | I12: 726 | J12: 806.3 | K12: 4098.3 | L12: 36578.4
A13: 7 | B13: =[2]Лист1!$F$308 -> 38.04 | C13: 6612.4 | D13: 1157 | E13: 10056 | F13: 2055.5 | G13: 270.5 | H13: 975 | I13: 603.8 | J13: 723.5 | K13: 3893.3 | L13: 26347
A14: 8 | B14: =[2]Лист1!$F$308 -> 38.04 | C14: 5427 | D14: 1356 | E14: 17692.6 | F14: 2124.9 | G14: 314.2 | H14: 1008.5 | I14: 685.4 | J14: 770.5 | K14: 4028.7 | L14: 33407.8
A15: 9 | B15: =[4]Лист1!$F$308 -> 38.23 | C15: 5748 | D15: 1683.6 | E15: 11075.9 | F15: 2380.8 | G15: 322.3 | H15: 1263.2 | I15: 833.3 | J15: 838 | K15: 4445.3 | L15: 28590.4
A16: 10 | B16: =[4]Лист1!$F$308 -> 38.23 | C16: 12166.1 | D16: 2861.1 | E16: 20601.2 | F16: 3753.7 | G16: 598.1 | H16: 2254.7 | I16: 1298.1 | J16: 1194.5 | K16: 7126 | L16: 51853.5
A17: 11 | B17: =[4]Лист1!$F$308 -> 38.23 | C17: 14206.5 | D17: 2917.5 | E17: 18736.5 | F17: 3632.1 | G17: 587.4 | H17: 2317.7 | I17: 1468.5 | J17: 1239.5 | K17: 8538.4 | L17: 53644.1
A18: 12 | B18: =[4]Лист1!$F$308 -> 38.23 | C18: 15995.8 | D18: 4149.2 | E18: 22972.1 | F18: 5283.5 | G18: 855.8 | H18: 2876 | I18: 2115.8 | J18: 1637.4 | K18: 12370.9 | L18: 68256.5
A19: 13 | B19: =[4]Лист1!$F$308 -> 38.23 | C19: 13175.7 | D19: 4284.4 | E19: 26696.6 | F19: 5595.5 | G19: 971.7 | H19: 3204 | I19: 2223.7 | J19: 1807.4 | K19: 13453.7 | L19: 71412.7
A20: 14 | B20: =[4]Лист1!$F$308 -> 38.23 | C20: 11561.6 | D20: 3513.2 | E20: 27584.1 | F20: 4707.9 | G20: 840.9 | H20: 2825.6 | I20: 1963.6 | J20: 1550.4 | K20: 13500 | L20: 68047.3
A21: 15 | B21: =[6]Лист1!$F$308 -> 37.95 | C21: 10222 | D21: 2254.7 | E21: 20079.3 | F21: 2941 | G21: 474.2 | H21: 1570 | I21: 1123.1 | J21: 1038.5 | K21: 6696.2 | L21: 46399
A22: 16 | B22: =[6]Лист1!$F$308 -> 37.95 | C22: 8839.4 | D22: 1746.6 | E22: 17383.5 | F22: 2377.9 | G22: 329.7 | H22: 1162.9 | I22: 817.7 | J22: 887 | K22: 23466.6 | L22: 57011.3
A23: 17 | B23: =[6]Лист1!$F$308 -> 37.95 | C23: 9273.8 | D23: 2074.7 | E23: 13473.6 | F23: 2692.7 | G23: 415.9 | H23: 1421 | I23: 951.5 | J23: 934.8 | K23: 5539.1 | L23: 36777.1
A24: 18 | B24: =[6]Лист1!$F$308 -> 37.95 | C24: 10267.9 | D24: 2422.4 | E24: 22188.3 | F24: 3137.7 | G24: 447.8 | H24: 1897.2 | I24: 1145.8 | J24: 1054.7 | K24: 6767.5 | L24: 49329.3
A25: 19 | B25: =[6]Лист1!$F$308 -> 37.95 | C25: 10494.4 | D25: 2820.5 | E25: 16718.7 | F25: 3820.3 | G25: 628.3 | H25: 2055.3 | I25: 1399 | J25: 1220.9 | K25: 8170.2 | L25: 47327.6
A26: 20 | B26: =[6]Лист1!$F$308 -> 37.95 | C26: 8642.2 | D26: 2600.9 | E26: 17062.3 | F26: 3992.6 | G26: 618.9 | H26: 1792.6 | I26: 1443.3 | J26: 1136.3 | K26: 9089.8 | L26: 46378.9
A27: 21 | B27: =[6]Лист1!$F$308 -> 37.95 | C27: 8308.6 | D27: 2149.1 | E27: 22927.3 | F27: 3012.4 | G27: 495.4 | H27: 1531.1 | I27: 1068.6 | J27: 1015.2 | K27: 7359.2 | L27: 47866.9
A28: 22 | B28: =[8]Лист1!$F$308 -> 37.97 | C28: 8254.9 | D28: 1757 | E28: 12667.8 | F28: 2560.9 | G28: 378.6 | H28: 1192.8 | I28: 868 | J28: 872 | K28: 5525 | L28: 34077
A29: 23 | B29: =[8]Лист1!$F$308 -> 37.97 | C29: 9992.7 | D29: 1397.9 | E29: 10964.6 | F29: 2172.8 | G29: 274.1 | H29: 954.5 | I29: 651.1 | J29: 816.4 | K29: 4373 | L29: 31597.1
A30: 24 | B30: =[8]Лист1!$F$308 -> 37.97 | C30: 6842.8 | D30: 1206.5 | E30: 16842.7 | F30: 2055.6 | G30: 232.5 | H30: 802.8 | I30: 572.8 | J30: 854.1 | K30: 4004.1 | L30: 33413.9
A31: 25 | B31: =[8]Лист1!$F$308 -> 37.97 | C31: 8717.7 | D31: 1137.1 | E31: 8861.1 | F31: 1906.9 | G31: 236.4 | H31: 752.8 | I31: 581.3 | J31: 748.6 | K31: 3803.5 | L31: 26745.4
A32: 26 | B32: =[8]Лист1!$F$308 -> 37.97 | C32: 8372.5 | D32: 1151 | E32: 16643.9 | F32: 1736 | G32: 207.4 | H32: 756.5 | I32: 505.2 | J32: 618.4 | K32: 3534.7 | L32: 33525.6
A33: 27 | B33: =[8]Лист1!$F$308 -> 37.97 | C33: 7055.2 | D33: 1321.4 | E33: 10788.7 | F33: 2131.9 | G33: 268.3 | H33: 878.4 | I33: 646.3 | J33: 757.9 | K33: 4198.3 | L33: 28046.4
A34: 28 | B34: =[8]Лист1!$F$308 -> 37.97 | C34: 6830.7 | D34: 1112.7 | E34: 9754.8 | F34: 1932.9 | G34: 230.6 | H34: 857.5 | I34: 574.7 | J34: 713.1 | K34: 4058.9 | L34: 26065.9
A35: 29 | B35: =[10]Лист1!$F$308 -> 38.43 | C35: 9248.4 | D35: 957.3 | E35: 14533.4 | F35: 1645.6 | G35: 193.6 | H35: 681.5 | I35: 478.1 | J35: 615.2 | K35: 3358 | L35: 31711.1
A36: 30 | B36: =[10]Лист1!$F$308 -> 38.43 | C36: 6951.7 | D36: 949.3 | E36: 15934.4 | F36: 1664.4 | G36: 206.3 | H36: 716.5 | I36: 486.1 | J36: 628.7 | K36: 3279.3 | L36: 30816.7
A37: 31 | B37: =[10]Лист1!$F$308 -> 38.43 | C37: 8148.6 | D37: 910.9 | E37: 15286 | F37: 1622.3 | G37: 180.9 | H37: 687.6 | I37: 463.4 | J37: 595.2 | K37: 3275.9 | L37: 31170.8
A38: Загальний обсяг газу, м3 | C38: =SUM(C7:C37) -> 277779.9 | D38: =SUM(D7:D37) -> 57881.5 | E38: 503649.1 | F38: =SUM(F7:F37) -> 84507.3 | G38: 12418.1 | H38: 42751.4 | I38: =SUM(I7:I37) -> 29377.3 | J38: 29215 | K38: 199221.1 | L38: =SUM(L7:L37) -> 1236800.7
A39: Енергія, МДж | C39: =SUMPRODUCT(B7:B37,C7:C37) -> 10579925.79 | D39: =SUMPRODUCT(B7:B37,D7:D37) -> 2204440.308 | E39: =SUMPRODUCT(B7:B37,E7:E37) -> 19182066.46 | F39: =SUMPRODUCT(B7:B37,F7:F37) -> 3218262.778 | G39: =SUMPRODUCT(B7:B37,G7:G37) -> 472949.663 | H39: =SUMPRODUCT(B7:B37,H7:H37) -> 1628353.006 | I39: =SUMPRODUCT(B7:B37,I7:I37) -> 1118877.664 | J39: =SUMPRODUCT(B7:B37,J7:J37) -> 1112541.808 | K39: =SUMPRODUCT(B7:B37,K7:K37) -> 7585157.206 | L39: =SUMPRODUCT(B7:B37,L7:L37) -> 47102574.69
A40: Теплота згоряння (середньозважене значення за місяць), МДж/м³ | C40: 38.08744187 | D40: 38.08540394 | E40: 38.08617242 | F40: 38.08266005 | G40: 38.0855093 | H40: 38.08888144 | I40: 38.0864703 | J40: 38.0811846 | K40: 38.07406548 | L40: 38.08420766
A41: Теплота згоряння (середньозважене значення за місяць), ккал/м³ | C41: 9097 | D41: 9096.127449 | E41: 9096.310991 | F41: 9095.472114 | G41: 9096.152613 | H41: 9096.957999 | I41: 9096.382135 | J41: 9095.119723 | K41: 9093.419428 | L41: 9095.841736
A42: Теплота згоряння (середньозважене значення за місяць), кВт*год./м³ | C42: 10.57984496 | D42: 10.57927887 | E42: 10.57949234 | F42: 10.57851668 | G42: 10.57930814 | H42: 10.58024484 | I42: 10.57957508 | J42: 10.57810683 | K42: 10.5761293 | L42: 10.57894657

Sheet додаток
A2: Додаток до Паспорту фізико-хімічних показників природного газу № 54
A4: Область | B4: ГРС, прямий споживач | C4: Cередньозважене значення вищої теплоти згоряння
C5: МДж/м³ | D5: ккал/м³ | E5: кВт*год./м³
A6: Полтавська область | B6: ГРС Войниха | C6: 38.08744187 | D6: 9097 | E6: 10.57984496
B7: ГРС Оріхівка | C7: 38.08540394 | D7: 9096.127449 | E7: 10.57927887
B8: ГРС Хорол | C8: 38.08617242 | D8: 9096.310991 | E8: 10.57949234
B9: ГРС Стайки | C9: 38.08266005 | D9: 9095.472114 | E9: 10.57851668
B10: ГРС Новачиха | C10: 38.0855093 | D10: 9096.152613 | E10: 10.57930814
B11: ГРС Ромодан | C11: 38.08888144 | D11: 9096.957999 | E11: 10.58024484
B12: ГРС Петракиївка | C12: 38.0864703 | D12: 9096.382135 | E12: 10.57957508
B13: ГРС Клепачі (Вергуни) | C13: 38.0811846 | D13: 9095.119723 | E13: 10.57810683
B14: ГРС Семенівка | C14: 38.07406548 | D14: 9093.419428 | E14: 10.5761293
A15: Середньозважене значення вищої теплоти згоряння по маршруту № 54 | C15: 38.08420766 | D15: 9095.841736 | E15: 10.57894657
A19: Головний інженер Лубенського ЛВУМГ Сирота В.П. | F19: 01.06.2017 року
A20: Підрозділу підприємства, якому підпорядкована лабораторія | D20: прізвище | E20: підпис | F20: дата
A21: Завідувач лабораторією Лубенського ЛВУМГ Алєксєєнко Н.А. 31.03.2017 року | F21: =F19 -> 01.06.2017 року
A22: Лабораторія, де здійснювалось вимірювання газу | D22: прізвище | E22: підпис | F22: дата
A23: Начальник служби ГВ та М Шило О.Є. 31.03.2017 року | F23: =F19 -> 01.06.2017 року
A24: Підрозділу, відповідального за облік газу за маршрутом | D24: прізвище | E24: підпис | F24: дата

Sheet variablesList (hidden)
A1: 3 | B1: x:\gaysin | C1: 10, 11, 24, 25, 127, 128, 132, 180, 207, 215 | D1: x:\
B2: x:\Illinci
B3: x:\Talne
